{"text_format":"1","workbook":"xlsx","n_sheets":14,"sheets":["Renseignements","Ce que fait le tableau","Feuille de présence","Moyennes","Fréquentation globale","Fréquentation 4-5 ans","Fréquentation 6-11 ans","Fréquentation 12-17 ans","Pourcentage S1","Pourcentage S2","Pourcentage S3","Pourcentage S4","Calculs","Global"],"not_rendered":{"charts":10,"images":3,"macros":1,"external_links":0,"defined_names":2,"comments":0,"pivot_tables":0},"unopened":[{"sheet":"Pourcentage S1","index":8,"reason":"not_a_worksheet"},{"sheet":"Pourcentage S2","index":9,"reason":"not_a_worksheet"},{"sheet":"Pourcentage S3","index":10,"reason":"not_a_worksheet"},{"sheet":"Pourcentage S4","index":11,"reason":"not_a_worksheet"},{"sheet":"Global","index":13,"reason":"not_a_worksheet"}],"bounds":{"document_bytes":16777216,"sheet_cells":100000,"rows_first":2000,"rows_last":500,"rows_between":2000,"halvings":0,"cell_chars":16384,"cell_head_chars":4096},"cells_cut":0,"cells_raw":0,"read":"whole","date_system":"1900"}

{"sheet":"Renseignements","index":0,"n_rows":16,"n_cols":5,"rows_kept":16,"cut":false,"hidden":false,"merged":[[4,2,4,4],[0,0,3,5],[12,0,12,3],[12,4,12,5],[13,0,14,5],[15,0,15,5],[5,0,7,5],[9,0,9,5],[10,0,10,3],[11,0,11,3],[10,4,10,5],[11,4,11,5]]}
["Informations"]
[]
[]
[]
[]
["L'utilisation de ce tableau se veut simple et accessible à tous !\nMerci de me faire parvenir vos remarques et améliorations éventuelles par courriel\nadmin@lanimetvous.com"]
[]
[]
[]
["Informations importantes à modifier si nécessaire !"]
["Nombre d'heures comptabilisées par demi-journée :",null,null,null,4]
["Nombre d'heures comptabilisées par journée :",null,null,null,8]
["Nom de la période de vacances :",null,null,null,"Vacances de Printemps 2014"]
["Les dons pour l'association sont les bienvenus"]
[]
["Version : 1.1"]

{"sheet":"Ce que fait le tableau","index":1,"n_rows":24,"n_cols":4,"rows_kept":24,"cut":false,"hidden":false,"merged":[[9,2,9,8],[0,0,1,8],[2,0,2,5],[5,2,5,8],[6,2,6,8],[8,0,8,2],[23,2,23,8],[10,3,10,8],[11,3,11,8],[12,3,12,8],[13,3,13,8],[14,3,14,8],[15,3,15,8],[17,2,17,8],[18,3,18,8],[19,3,19,8],[20,3,20,8],[22,0,22,2]]}
["Ce que fait ce tableau :"]
[]
["Le tableau utilise les tranche d'âge de la CAF"]
[]
["Moyennes :"]
[null,"·","Moyenne du nombre d'enfant pour chaque semaine"]
[null,"·","Moyenne du nombre d'enfant pour la totalité du séjour"]
[]
["Fréquentations :"]
[null,"·","Fréquentation globale"]
[null,null,"·","En demi-journée pour chaque semaine"]
[null,null,"·","En demi-journée pour la totalité du séjour"]
[null,null,"·","En journée pour chaque semaine"]
[null,null,"·","En journée pour la totalité du séjour"]
[null,null,"·","En heure pour chaque semaine"]
[null,null,"·","En heure pour la totalité du séjour"]
[]
[null,"·","Fréquentation par tranche d'âge"]
[null,null,"·","En heure"]
[null,null,"·","En journée"]
[null,null,"·","En demi-journée"]
[]
["Pourcentages :"]
[null,"·","Fréquentation par semaine par tranche d'âge"]

{"sheet":"Feuille de présence","index":2,"n_rows":15,"n_cols":46,"rows_kept":15,"cut":false,"hidden":false,"merged":[[1,3,1,7],[2,3,2,7],[7,15,7,16],[7,17,7,18],[6,35,6,44],[6,25,6,34],[6,15,6,24],[7,39,7,40],[6,5,6,14],[7,3,8,3],[7,4,8,4],[7,5,7,6],[7,7,7,8],[7,9,7,10],[6,45,8,45],[7,11,7,12],[7,13,7,14],[7,19,7,20],[7,21,7,22],[7,23,7,24],[7,25,7,26],[7,27,7,28],[7,29,7,30],[7,41,7,42],[7,43,7,44],[7,31,7,32],[7,33,7,34],[7,35,7,36],[7,37,7,38],[1,0,1,2],[2,0,2,2],[7,0,8,0],[7,1,8,1],[7,2,8,2]]}
[]
["Date du premier jour du séjour :",null,null,"Période :"]
["2014-08-04",null,null,{"$f":"Renseignements!E13","v":"Vacances de Printemps 2014"}]
[]
[]
[]
[null,null,null,null,null,"Semaine 1",null,null,null,null,null,null,null,null,null,"Semaine 2",null,null,null,null,null,null,null,null,null,"Semaine 3",null,null,null,null,null,null,null,null,null,"Semaine 4",null,null,null,null,null,null,null,null,null,"TOT"]
["NOM","Prénom","Date de naissance","Âge","Tranche d'âge",7,null,8,null,9,null,10,null,11,null,15,null,151,null,16,null,17,null,18,null,21,null,22,null,23,null,24,null,25,null,28,null,29,null,30,null,31,null,1]
[null,null,null,null,null,"m","am","m","am","m","am","m","am","m","am","m","am","m","am","m","am","m","am","m","am","m","am","m","am","m","am","m","am","m","am","m","am","m","am","m","am","m","am","m","am"]
["MARTIN","Jacques","2005-01-01",{"$f":"IF(C10<>\"\",DATEDIF(C10,$A$3,\"y\"),\"\")","v":9},{"$f":"IF(C10=\"\",\"\",IF(D10<4,\"???\",IF(D10<6,\"4-5 ans\",IF(D10<12,\" 6-11 ans\",IF(D10<18,\"12-17 ans\",\"???\")))))","v":" 6-11 ans"},null,null,null,null,null,null,null,null,null,null,null,null,null,null,null,null,null,null,null,null,null,null,null,null,null,null,null,null,null,null,null,null,null,null,null,null,null,null,null,null,{"$f":"SUBTOTAL(3,F10:AS10)","v":0}]
[null,null,null,{"$f":"IF(C11<>\"\",DATEDIF(C11,$A$3,\"y\"),\"\")","v":""},{"$f":"IF(C11=\"\",\"\",IF(D11<4,\"???\",IF(D11<6,\"4-5 ans\",IF(D11<12,\" 6-11 ans\",IF(D11<18,\"12-17 ans\",\"???\")))))","v":""},null,null,null,null,null,null,null,null,null,null,null,null,null,null,null,null,null,null,null,null,null,null,null,null,null,null,null,null,null,null,null,null,null,null,null,null,null,null,null,null,{"$f":"SUBTOTAL(3,F11:AS11)","v":0}]
[null,null,null,"Total",{"$f":"SUM(E13:E16)","v":1},{"$f":"SUM(F13:F16)","v":0},{"$f":"SUM(G13:G16)","v":0},0,0,0,0,0,0,0,0,0,0,0,0,0,0,0,0,0,0,0,0,0,0,0,0,0,0,0,0,0,0,0,0,0,0,0,0,0,0]
[null,null,null,"4-5 ans",{"$f":"COUNTIF(E$7:E$11,$D13)","v":0},{"$f":"SUMPRODUCT(($E$10:$E$11=$D13)*(F$10:F$11=\"x\"))","v":0},0,0,0,0,0,0,0,0,0,{"$f":"SUMPRODUCT(($E$10:$E$11=$D13)*(P$10:P$11=\"x\"))","v":0},0,0,0,0,0,0,0,0,0,{"$f":"SUMPRODUCT(($E$10:$E$11=$D13)*(Z$10:Z$11=\"x\"))","v":0},0,0,0,0,0,0,0,0,0,{"$f":"SUMPRODUCT(($E$10:$E$11=$D13)*(AJ$10:AJ$11=\"x\"))","v":0},0,0,0,0,0,0,0,0,0]
[null,null,null," 6-11 ans",{"$f":"COUNTIF(E$7:E$11,$D14)","v":1},0,0,0,0,0,0,0,0,0,0,0,0,0,0,0,0,0,0,0,0,0,0,0,0,0,0,0,0,0,0,0,0,0,0,0,0,0,0,0,0]
[null,null,null,"12-17 ans",{"$f":"COUNTIF(E$7:E$11,$D15)","v":0},0,0,0,0,0,0,0,0,0,0,0,0,0,0,0,0,0,0,0,0,0,0,0,0,0,0,0,0,0,0,0,0,0,0,0,0,0,0,0,0]

{"sheet":"Moyennes","index":3,"n_rows":18,"n_cols":3,"rows_kept":18,"cut":false,"hidden":false,"merged":[[1,0,1,3],[2,0,2,3],[4,0,7,7],[73,2,73,7],[74,2,74,7],[17,1,18,1],[17,0,18,0],[16,0,16,7],[17,2,18,7],[9,0,9,7],[10,2,10,7],[11,2,11,7],[12,2,12,7],[13,2,13,7],[14,2,14,7]]}
[]
["Période :"]
[{"$f":"Renseignements!E13","v":"Vacances de Printemps 2014"}]
[]
["Les feuilles suivantes sont en lecture seule. \nAucune modification ne doit y être apportée. \nLes calculs se font automatiquements."]
[]
[]
[]
[]
["Moyennes :"]
["Semaine 1",{"$f":"AVERAGE('Feuille de présence'!F12:O12)","v":0},"enfant(s) de moyenne par demi journée pour la semaine "]
["Semaine 2",{"$f":"AVERAGE('Feuille de présence'!P12:Y12)","v":0},"enfant(s) de moyenne par demi journée pour cette semaine"]
["Semaine 3",{"$f":"AVERAGE('Feuille de présence'!Z12:AI12)","v":0},"enfant(s) de moyenne par demi journée pour cette semaine"]
["Semaine 4",{"$f":"AVERAGE('Feuille de présence'!AJ12:AS12)","v":0},"enfant(s) de moyenne par demi journée pour cette semaine"]
["Globale",{"$f":"AVERAGE('Feuille de présence'!F12:AS12)","v":0},"enfant(s) de moyenne par demi journée pour les quatre semaines"]
[]
["Inscrits"]
["Globale",{"$f":"SUM('Feuille de présence'!E12)","v":1},"inscrit(s) sur cette période"]

{"sheet":"Fréquentation globale","index":4,"n_rows":24,"n_cols":3,"rows_kept":24,"cut":false,"hidden":false,"merged":[[1,0,1,3],[2,0,2,3],[21,2,21,7],[22,2,22,7],[23,2,23,7],[13,2,13,7],[14,2,14,7],[15,2,15,7],[16,2,16,7],[19,2,19,7],[18,0,18,7],[12,2,12,7],[20,2,20,7],[11,0,11,7],[4,0,4,7],[5,2,5,7],[6,2,6,7],[7,2,7,7],[8,2,8,7],[9,2,9,7]]}
[]
["Période :"]
[{"$f":"Renseignements!E13","v":"Vacances de Printemps 2014"}]
[]
["Fréquentation :\n(en demi-journée)"]
["Semaine 1",{"$f":"SUM('Feuille de présence'!F12:O12)","v":0},"demi journée de fréquentation pour cette semaine"]
["Semaine 2",{"$f":"SUM('Feuille de présence'!P12:Y12)","v":0},"demi journée de fréquentation pour cette semaine"]
["Semaine 3",{"$f":"SUM('Feuille de présence'!Z12:AI12)","v":0},"demi journée de fréquentation pour cette semaine"]
["Semaine 4",{"$f":"SUM('Feuille de présence'!AJ12:AS12)","v":0},"demi journée de fréquentation pour cette semaine"]
["Globale",{"$f":"SUM(B6:B9)","v":0},"demi journées de fréquentation pour les quatre semaines"]
[]
["Fréquentation :\n(en jours)"]
["Semaine 1",{"$f":"B6/2","v":0},"journée(s) de fréquentation pour cette semaine"]
["Semaine 2",{"$f":"B7/2","v":0},"journée(s) de fréquentation pour cette semaine"]
["Semaine 3",{"$f":"B8/2","v":0},"journée(s) de fréquentation pour cette semaine"]
["Semaine 4",{"$f":"B9/2","v":0},"journée(s) de fréquentation pour cette semaine"]
["Globale",{"$f":"SUM(B13:B16)","v":0},"journée(s) de fréquentation pour les quatre semaines"]
[]
["Fréquentation :\n(en heures)"]
["Semaine 1",{"$f":"B13*8","v":0},"heure(s) de fréquentation pour cette semaine"]
["Semaine 2",{"$f":"B14*8","v":0},"heure(s) de fréquentation pour cette semaine"]
["Semaine 3",{"$f":"B15*8","v":0},"heure(s) de fréquentation pour cette semaine"]
["Semaine 4",{"$f":"B16*8","v":0},"heure(s) de fréquentation pour cette semaine"]
["Globale",{"$f":"SUM(B20:B23)","v":0},"heure(s) de fréquentation pour les quatre semaines"]

{"sheet":"Fréquentation 4-5 ans","index":5,"n_rows":24,"n_cols":3,"rows_kept":24,"cut":false,"hidden":false,"merged":[[1,0,1,3],[2,0,2,3],[9,2,9,7],[5,2,5,7],[4,0,4,7],[6,2,6,7],[7,2,7,7],[8,2,8,7],[11,0,11,7],[12,2,12,7],[13,2,13,7],[14,2,14,7],[15,2,15,7],[22,2,22,7],[23,2,23,7],[16,2,16,7],[18,0,18,7],[19,2,19,7],[20,2,20,7],[21,2,21,7]]}
[]
["Période :"]
[{"$f":"Renseignements!E13","v":"Vacances de Printemps 2014"}]
[]
["Fréquentation :\n(4-5 ans)"]
["Semaine 1",{"$f":"SUM('Feuille de présence'!F13:O13)*Renseignements!E11","v":0},"heure(s) de fréquentation pour cette semaine"]
["Semaine 2",{"$f":"SUM('Feuille de présence'!P13:Y13)*Renseignements!E11","v":0},"heure(s) de fréquentation pour cette semaine"]
["Semaine 3",{"$f":"SUM('Feuille de présence'!Z13:AI13)*Renseignements!E11","v":0},"heure(s) de fréquentation pour cette semaine"]
["Semaine 4",{"$f":"SUM('Feuille de présence'!AJ13:AS13)*Renseignements!E11","v":0},"heure(s) de fréquentation pour cette semaine"]
["Globale",{"$f":"SUM(B6:B9)","v":0},"heure(s) de fréquentation pour les quatre semaines pour cette tranche d'âge"]
[]
["Fréquentation :\n(4-5 ans)"]
["Semaine 1",{"$f":"SUM('Feuille de présence'!F13:O13)/2","v":0},"journée(s) de fréquentation pour cette semaine"]
["Semaine 2",{"$f":"SUM('Feuille de présence'!P13:Y13)/2","v":0},"journée(s) de fréquentation pour cette semaine"]
["Semaine 3",{"$f":"SUM('Feuille de présence'!Z13:AI13)/2","v":0},"journée(s) de fréquentation pour cette semaine"]
["Semaine 4",{"$f":"SUM('Feuille de présence'!AJ13:AS13)/2","v":0},"journée(s) de fréquentation pour cette semaine"]
["Globale",{"$f":"SUM(B13:B16)","v":0},"journée(s) de fréquentation pour les quatre semaines"]
[]
["Fréquentation :\n(4-5 ans)"]
["Semaine 1",{"$f":"SUM('Feuille de présence'!F13:O13)","v":0},"demi journée de fréquentation pour cette semaine"]
["Semaine 2",{"$f":"SUM('Feuille de présence'!P13:Y13)","v":0},"demi journée de fréquentation pour cette semaine"]
["Semaine 3",{"$f":"SUM('Feuille de présence'!Z13:AI13)","v":0},"demi journée de fréquentation pour cette semaine"]
["Semaine 4",{"$f":"SUM('Feuille de présence'!AJ13:AS13)","v":0},"demi journée de fréquentation pour cette semaine"]
["Globale",{"$f":"SUM(B20:B23)","v":0},"demi journées de fréquentation pour les quatre semaines"]

{"sheet":"Fréquentation 6-11 ans","index":6,"n_rows":24,"n_cols":3,"rows_kept":24,"cut":false,"hidden":false,"merged":[[1,0,1,3],[2,0,2,3],[9,2,9,7],[4,0,4,7],[5,2,5,7],[6,2,6,7],[7,2,7,7],[8,2,8,7],[11,0,11,7],[12,2,12,7],[13,2,13,7],[14,2,14,7],[15,2,15,7],[22,2,22,7],[23,2,23,7],[16,2,16,7],[18,0,18,7],[19,2,19,7],[20,2,20,7],[21,2,21,7]]}
[]
["Période :"]
[{"$f":"Renseignements!E13","v":"Vacances de Printemps 2014"}]
[]
["Fréquentation :\n(6-11 ans)"]
["Semaine 1",{"$f":"SUM('Feuille de présence'!F14:O14)*Renseignements!E11","v":0},"heure(s) de fréquentation pour cette semaine"]
["Semaine 2",{"$f":"SUM('Feuille de présence'!P14:Y14)*Renseignements!E11","v":0},"heure(s) de fréquentation pour cette semaine"]
["Semaine 3",{"$f":"SUM('Feuille de présence'!Z14:AI14)*Renseignements!E11","v":0},"heure(s) de fréquentation pour cette semaine"]
["Semaine 4",{"$f":"SUM('Feuille de présence'!AJ14:AS14)*Renseignements!E11","v":0},"heure(s) de fréquentation pour cette semaine"]
["Globale",{"$f":"SUM(B6:B9)","v":0},"heure(s) de fréquentation pour les quatre semaines pour cette tranche d'âge"]
[]
["Fréquentation :\n(6-11 ans)"]
["Semaine 1",{"$f":"SUM('Feuille de présence'!F14:O14)/2","v":0},"journée(s) de fréquentation pour cette semaine"]
["Semaine 2",{"$f":"SUM('Feuille de présence'!P14:Y14)/2","v":0},"journée(s) de fréquentation pour cette semaine"]
["Semaine 3",{"$f":"SUM('Feuille de présence'!Z14:AI14)/2","v":0},"journée(s) de fréquentation pour cette semaine"]
["Semaine 4",{"$f":"SUM('Feuille de présence'!AJ21:AS21)*Renseignements!F14","v":0},"journée(s) de fréquentation pour cette semaine"]
["Globale",{"$f":"SUM(B13:B16)","v":0},"journée(s) de fréquentation pour les quatre semaines"]
[]
["Fréquentation :\n(6-11 ans)"]
["Semaine 1",{"$f":"SUM('Feuille de présence'!F14:O14)","v":0},"demi journée de fréquentation pour cette semaine"]
["Semaine 2",{"$f":"SUM('Feuille de présence'!P14:Y14)","v":0},"demi journée de fréquentation pour cette semaine"]
["Semaine 3",{"$f":"SUM('Feuille de présence'!Z14:AI14)","v":0},"demi journée de fréquentation pour cette semaine"]
["Semaine 4",{"$f":"SUM('Feuille de présence'!AJ14:AS14)","v":0},"demi journée de fréquentation pour cette semaine"]
["Globale",{"$f":"SUM(B20:B23)","v":0},"demi journées de fréquentation pour les quatre semaines"]

{"sheet":"Fréquentation 12-17 ans","index":7,"n_rows":24,"n_cols":3,"rows_kept":24,"cut":false,"hidden":false,"merged":[[1,0,1,3],[2,0,2,3],[9,2,9,7],[4,0,4,7],[5,2,5,7],[6,2,6,7],[7,2,7,7],[8,2,8,7],[11,0,11,7],[12,2,12,7],[13,2,13,7],[14,2,14,7],[15,2,15,7],[22,2,22,7],[23,2,23,7],[16,2,16,7],[18,0,18,7],[19,2,19,7],[20,2,20,7],[21,2,21,7]]}
[]
["Période :"]
[{"$f":"Renseignements!E13","v":"Vacances de Printemps 2014"}]
[]
["Fréquentation :\n(12-17 ans)"]
["Semaine 1",{"$f":"SUM('Feuille de présence'!F15:O15)*Renseignements!E11","v":0},"heure(s) de fréquentation pour cette semaine"]
["Semaine 2",{"$f":"SUM('Feuille de présence'!P15:Y15)*Renseignements!E11","v":0},"heure(s) de fréquentation pour cette semaine"]
["Semaine 3",{"$f":"SUM('Feuille de présence'!Z15:AI15)*Renseignements!E11","v":0},"heure(s) de fréquentation pour cette semaine"]
["Semaine 4",{"$f":"SUM('Feuille de présence'!AJ15:AS15)*Renseignements!E11","v":0},"heure(s) de fréquentation pour cette semaine"]
["Globale",{"$f":"SUM(B6:B9)","v":0},"heure(s) de fréquentation pour les quatre semaines pour cette tranche d'âge"]
[]
["Fréquentation :\n(12-17 ans)"]
["Semaine 1",{"$f":"SUM('Feuille de présence'!F22:O22)/2","v":0},"journée(s) de fréquentation pour cette semaine"]
["Semaine 2",{"$f":"SUM('Feuille de présence'!P22:Y22)/2","v":0},"journée(s) de fréquentation pour cette semaine"]
["Semaine 3",{"$f":"SUM('Feuille de présence'!Z22:AI22)/2","v":0},"journée(s) de fréquentation pour cette semaine"]
["Semaine 4",{"$f":"SUM('Feuille de présence'!AJ22:AS22)/2","v":0},"journée(s) de fréquentation pour cette semaine"]
["Globale",{"$f":"SUM(B13:B16)","v":0},"journée(s) de fréquentation pour les quatre semaines"]
[]
["Fréquentation :\n(12-17 ans)"]
["Semaine 1",{"$f":"SUM('Feuille de présence'!F29:O29)","v":0},"demi journée de fréquentation pour cette semaine"]
["Semaine 2",{"$f":"SUM('Feuille de présence'!P29:Y29)","v":0},"demi journée de fréquentation pour cette semaine"]
["Semaine 3",{"$f":"SUM('Feuille de présence'!Z29:AI29)","v":0},"demi journée de fréquentation pour cette semaine"]
["Semaine 4",{"$f":"SUM('Feuille de présence'!AJ29:AS29)","v":0},"demi journée de fréquentation pour cette semaine"]
["Globale",{"$f":"SUM(B20:B23)","v":0},"demi journées de fréquentation pour les quatre semaines"]

{"sheet":"Calculs","index":12,"n_rows":9,"n_cols":6,"rows_kept":9,"cut":false,"hidden":true,"merged":[[6,1,6,4],[6,5,8,7],[7,1,7,4],[8,1,8,4],[1,5,3,7],[5,1,5,4]]}
[null,"Semaine 1","Semaine 2","Semaine 3","Semaine 4"]
["4-5 ans",{"$f":"SUM('Feuille de présence'!F13:O13)","v":0},{"$f":"SUM('Feuille de présence'!P13:Y13)","v":0},{"$f":"SUM('Feuille de présence'!Z13:AI13)","v":0},{"$f":"SUM('Feuille de présence'!AJ13:AS13)","v":0},"demi-journée(s)"]
["6-11 ans",{"$f":"SUM('Feuille de présence'!F14:O14)","v":0},{"$f":"SUM('Feuille de présence'!P14:Y14)","v":0},{"$f":"SUM('Feuille de présence'!Z14:AI14)","v":0},{"$f":"SUM('Feuille de présence'!AJ14:AS14)","v":0}]
["12-17 ans",{"$f":"SUM('Feuille de présence'!F15:O15)","v":0},{"$f":"SUM('Feuille de présence'!P15:Y15)","v":0},{"$f":"SUM('Feuille de présence'!Z15:AI15)","v":0},{"$f":"SUM('Feuille de présence'!AJ15:AS15)","v":0}]
[]
[null,"Sur les quatre semaines"]
["4-5 ans",{"$f":"SUM(B2:E2)","v":0},null,null,null,"demi-journée(s)"]
["6-11 ans",{"$f":"SUM(B3:E3)","v":0}]
["12-17 ans",{"$f":"SUM(B4:E4)","v":0}]